bitfinex/quotes_BTCUSD_20251214
["timestamp","ask_amount","ask_price","bid_price","bid_amount"]
[1765704547709,0.52627813,90142.0,90141.0,0.00781887]
[1765704548031,0.52627813,90142.0,90141.0,0.00881887]
[1765704556812,0.51518502,90142.0,90141.0,0.00881887]
[1765704575600,0.22448502,90142.0,90141.0,0.00881887]
[1765704575939,0.00261287,90142.0,90141.0,0.00881887]
[1765704582193,0.001,90142.0,90141.0,0.23069348]
[1765704582395,0.001,90142.0,90141.0,0.27152348]
[1765704587525,0.01109225,90153.0,90150.0,0.01109262]
[1765704587722,0.01109225,90153.0,90151.0,0.01748]
[1765704587921,0.23293239,90155.0,90151.0,0.25042226]
[1765704588609,0.011092,90155.0,90152.0,0.01109237]
[1765704590200,0.23293247,90155.0,90152.0,0.01109237]
[1765704590422,0.013092,90155.0,90152.0,0.01109237]
[1765704590721,0.011092,90155.0,90152.0,0.01109237]
[1765704590954,0.013092,90155.0,90152.0,0.01109237]
[1765704591779,0.002,90155.0,90152.0,0.01109237]
[1765704592540,0.22184754,90152.0,90151.0,0.01748]
[1765704593611,0.22184754,90152.0,90151.0,0.01848]
[1765704594565,0.22284754,90152.0,90151.0,0.01848]
[1765704598316,0.22446041,90152.0,90151.0,0.001]
[1765704598518,0.22446041,90152.0,90151.0,0.01848]
[1765704600618,0.22446041,90152.0,90151.0,0.001]
[1765704601239,0.22446041,90152.0,90142.0,0.00023929]
[1765704601240,0.22186969,90143.0,90142.0,0.00023929]
[1765704601438,0.22186969,90143.0,90141.0,0.00754967]
[1765704601772,0.22189923,90131.0,90130.0,0.0002]
[1765704602356,0.22189923,90131.0,90130.0,0.000559]
[1765704603260,0.22289923,90131.0,90130.0,0.000559]
[1765704603461,0.22289923,90131.0,90130.0,0.003559]
[1765704607316,0.001,90131.0,90130.0,0.003559]
[1765704610728,0.0287374,90131.0,90130.0,0.003559]
[1765704611824,0.0277374,90131.0,90130.0,0.000559]
[1765704612165,0.0287374,90131.0,90130.0,0.000559]
[1765704612307,0.0287374,90131.0,90130.0,0.001559]
[1765704617916,0.0287374,90131.0,90120.0,0.02877631]
[1765704617917,0.22192385,90121.0,90120.0,0.0002]
[1765704619157,0.22292385,90121.0,90120.0,0.0012]
[1765704621881,0.22292385,90121.0,90120.0,0.00127257]
[1765704622876,0.22292385,90121.0,90120.0,0.00027257]
[1765704623595,0.22292385,90121.0,90120.0,0.00057179]
[1765704624113,0.22192385,90121.0,90120.0,0.00057179]
[1765704624313,0.22292385,90121.0,90120.0,0.00157179]
[1765704629070,0.22292385,90121.0,90120.0,0.00057179]
[1765704630251,0.22192385,90121.0,90120.0,0.00057179]
[1765704630458,0.22292385,90121.0,90120.0,0.00057179]
[1765704636744,0.22192385,90121.0,90120.0,0.00057179]
[1765704637202,0.22392385,90121.0,90120.0,0.00057179]
[1765704647210,0.51462385,90121.0,90120.0,0.00057179]
[1765704647408,0.51462385,90121.0,90099.0,0.04998545]
[1765704647409,0.51264848,90111.0,90099.0,0.04998545]
[1765704647626,0.22199775,90091.0,90090.0,0.01270069]
[1765704647828,0.23309444,90093.0,90090.0,0.01270069]
[1765704647829,0.01109964,90093.0,90090.0,0.01270069]
[1765704648043,0.01109964,90093.0,90090.0,0.03674069]
[1765704648044,0.22199529,90092.0,90090.0,0.03674069]
[1765704648337,0.22199529,90092.0,90090.0,0.01270069]
[1765704649332,0.34071839,90091.0,90090.0,0.01270069]
[1765704649532,0.01752,90091.0,90090.0,0.01270069]
[1765704649837,0.001,90091.0,90090.0,0.01270069]
[1765704650049,0.02861964,90093.0,90090.0,0.01270069]
[1765704650050,0.01109964,90093.0,90090.0,0.01270069]
[1765704650273,0.22199529,90092.0,90090.0,0.01270069]
[1765704650493,0.22299529,90092.0,90090.0,0.01370069]
[1765704650708,0.01109927,90096.0,90090.0,0.01370069]
[1765704650709,0.01109939,90095.0,90090.0,0.0248007]
[1765704650911,0.01109927,90096.0,90091.0,0.03874988]
[1765704651110,0.01109914,90097.0,90093.0,0.01109964]
[1765704651470,0.01109939,90095.0,90094.0,0.02404]
[1765704652686,0.01109914,90097.0,90094.0,0.02404]
[1765704653044,0.001,90096.0,90094.0,0.02404]
[1765704653196,0.0110989,90099.0,90094.0,0.03513951]
[1765704653401,0.0110989,90099.0,90095.0,0.01109939]
[1765704653622,0.0110989,90099.0,90095.0,0.03513939]
[1765704654041,0.0110989,90099.0,90096.0,0.02404]
[1765704654237,0.01109927,90096.0,90093.0,0.01109964]
[1765704654414,0.23408475,90096.0,90092.0,0.01109976]
[1765704654639,0.23308475,90096.0,90092.0,0.01109976]
[1765704654801,0.01109927,90096.0,90092.0,0.01109976]
[1765704655160,0.01109939,90095.0,90092.0,0.01109976]
[1765704655370,0.01109939,90095.0,90091.0,0.02291988]
[1765704655785,0.01109939,90095.0,90092.0,0.01109976]
[1765704656182,0.01109951,90094.0,90091.0,0.02291988]
[1765704656655,0.01109951,90094.0,90091.0,0.02391988]
[1765704657081,0.01109951,90094.0,90091.0,0.01282]
[1765704657300,0.01109951,90094.0,90091.0,0.01182]
[1765704657502,0.01109951,90094.0,90091.0,0.02391988]
[1765704657713,0.01209951,90094.0,90091.0,0.02391988]
[1765704658732,0.001,90094.0,90091.0,0.24591755]
[1765704658934,0.001,90094.0,90091.0,0.02391988]
[1765704659140,0.001,90094.0,90093.0,0.00080818]
[1765704660285,0.2330876,90095.0,90093.0,0.00080818]
[1765704660486,0.23308763,90095.0,90093.0,0.001]
[1765704660693,0.01109939,90095.0,90094.0,0.00077824]
[1765704661102,0.01109865,90101.0,90096.0,0.22198485]
[1765704661320,0.01109791,90107.0,90101.0,0.02359865]
[1765704661519,0.01109767,90109.0,90106.0,0.03894804]
[1765704661723,0.01109742,90111.0,90107.0,0.01109791]
[1765704661903,0.01109742,90111.0,90107.0,0.03492791]
[1765704662919,0.01109742,90111.0,90108.0,0.01109779]
[1765704663299,0.01209742,90111.0,90108.0,0.01109779]
[1765704663704,0.001,90111.0,90109.0,0.02383]
[1765704663907,0.001,90111.0,90110.0,0.01535]
[1765704664118,0.07199119,90115.0,90110.0,0.02644754]
[1765704664317,0.01109668,90117.0,90112.0,0.0110973]
[1765704664517,0.06089426,90114.0,90112.0,0.0110973]
[1765704664728,0.06089426,90114.0,90113.0,0.02383]
[1765704665492,0.01109668,90117.0,90114.0,0.01109705]
[1765704665697,0.06089426,90116.0,90114.0,0.01109705]
[1765704665894,0.06089426,90116.0,90114.0,0.03492705]
[1765704666086,0.01109668,90117.0,90114.0,0.03492705]
[1765704667016,0.01109643,90119.0,90114.0,0.03492705]
[1765704667017,0.01109643,90119.0,90114.0,0.01209705]
[1765704667285,0.23302478,90120.0,90117.0,0.01535]
[1765704667683,0.23302478,90120.0,90117.0,0.01546601]
[1765704667911,0.01109631,90120.0,90117.0,0.01546601]
[1765704668624,0.01109631,90120.0,90117.0,0.03929601]
[1765704669020,0.01109631,90120.0,90117.0,0.05039269]
[1765704669261,0.22191929,90123.0,90119.0,0.02644643]
[1765704669460,0.06089426,90122.0,90120.0,0.01109631]
[1765704669662,0.01109582,90124.0,90121.0,0.03894619]
[1765704669865,0.01109582,90124.0,90122.0,0.01535]
[1765704670057,0.01109582,90124.0,90122.0,0.03918]
[1765704670566,0.01109582,90124.0,90123.0,0.02383]
[1765704670778,0.01309582,90124.0,90123.0,0.02383]
[1765704670971,0.002,90124.0,90123.0,0.03918]
[1765704672356,0.002,90124.0,90123.0,0.01535]
[1765704672794,0.002,90124.0,90123.0,0.23726893]
[1765704672974,0.01109557,90126.0,90123.0,0.26109893]
[1765704673176,0.002,90124.0,90123.0,0.03918]
[1765704673597,0.01109557,90126.0,90123.0,0.03918]
[1765704673795,0.23300103,90129.0,90125.0,0.01535]
[1765704673975,0.23300103,90129.0,90126.0,0.0125]
[1765704674180,0.23300103,90129.0,90126.0,0.03633]
[1765704674375,0.23298106,90137.0,90130.0,0.22190149]
[1765704674577,0.01109422,90137.0,90131.0,0.0125]
[1765704674777,0.01109422,90137.0,90132.0,0.22189677]
[1765704674984,0.22188692,90136.0,90131.0,0.03633]
[1765704675189,0.01109434,90136.0,90133.0,0.01109471]
[1765704675391,0.22188211,90138.0,90133.0,0.01109471]
[1765704675392,0.0110941,90138.0,90135.0,0.01109446]
[1765704675630,0.0110941,90138.0,90135.0,0.02644446]
[1765704675810,0.0110941,90138.0,90135.0,0.05027446]
[1765704676405,0.001,90137.0,90135.0,0.05027446]
[1765704676602,0.0110941,90138.0,90135.0,0.01535]
[1765704677051,0.01109422,90137.0,90134.0,0.25050643]
[1765704677642,0.01209422,90137.0,90134.0,0.25050643]
[1765704677815,0.01109422,90137.0,90134.0,0.25050643]
[1765704678223,0.01109422,90137.0,90135.0,0.001]
[1765704678610,0.01109422,90137.0,90134.0,0.27433643]
[1765704678832,0.0110941,90138.0,90134.0,0.27433643]
[1765704678987,0.0110941,90138.0,90134.0,0.27533643]
[1765704679197,0.001,90137.0,90134.0,0.27533643]
[1765704679680,0.0110941,90138.0,90134.0,0.27433643]
[1765704679880,0.0120941,90138.0,90135.0,0.03492446]
[1765704680084,0.001,90138.0,90137.0,0.01535]
[1765704680285,0.06089426,90139.0,90137.0,0.01535]
[1765704681602,0.001,90138.0,90137.0,0.01535]
[1765704682362,0.001,90138.0,90137.0,0.01635]
[1765704682742,0.221882,90138.0,90137.0,0.01535]
[1765704683143,0.221882,90138.0,90137.0,0.01635]
[1765704683368,0.06089426,90139.0,90137.0,0.01635]
[1765704683571,0.001,90138.0,90137.0,0.01635]
[1765704684519,0.001,90138.0,90137.0,0.01535]
[1765704684795,0.001,90138.0,90137.0,0.01635]
[1765704685829,0.001,90138.0,90137.0,0.01535]
[1765704686033,0.001,90138.0,90137.0,0.01635]
[1765704686400,0.001,90138.0,90137.0,0.001]
[1765704689605,0.03034812,90138.0,90137.0,0.001]
[1765704690596,0.22189184,90134.0,90132.0,0.01752]
[1765704691178,0.01109594,90123.0,90119.0,0.23302312]
[1765704691381,0.01109594,90123.0,90120.0,0.01752]
[1765704691554,0.01109594,90123.0,90120.0,0.04025]
[1765704691770,0.01109594,90123.0,90121.0,0.01215]
[1765704691999,0.01109594,90123.0,90121.0,0.03488]
[1765704692444,0.01109594,90123.0,90122.0,0.02273]
[1765704692685,0.01109582,90124.0,90122.0,0.02273]
[1765704692893,0.005,90123.0,90122.0,0.02273]
[1765704693070,0.01109606,90122.0,90118.0,0.01109656]
[1765704693245,0.01109606,90122.0,90120.0,0.01752]
[1765704694509,0.01409606,90122.0,90120.0,0.01752]
[1765704694687,0.01109619,90121.0,90120.0,0.01752]
[1765704695637,0.01109619,90121.0,90117.0,0.01121269]
[1765704695638,0.23302263,90120.0,90117.0,0.00011601]
[1765704695842,0.23302263,90120.0,90118.0,0.01752]
[1765704697477,0.23302263,90120.0,90118.0,0.04025]
[1765704697673,0.23602263,90120.0,90118.0,0.04025]
[1765704697888,0.23602263,90120.0,90118.0,0.01752]
[1765704698258,0.008,90120.0,90118.0,0.01752]
[1765704698684,0.008,90120.0,90119.0,0.03295]
[1765704699498,0.003,90120.0,90119.0,0.03295]
[1765704699747,0.22194355,90113.0,90094.0,0.07985477]
[1765704699949,0.22194355,90113.0,90090.0,0.01270069]
[1765704699950,0.23309427,90093.0,90090.0,0.01270069]
[1765704700163,0.23309459,90093.0,90091.0,0.02273]
[1765704700384,0.23309459,90093.0,90092.0,0.01543]
[1765704700538,0.23309459,90093.0,90092.0,0.01602868]
[1765704700762,0.23309459,90093.0,90092.0,0.00059868]
[1765704701826,0.23409459,90093.0,90092.0,0.00059868]
[1765704702026,0.23309459,90093.0,90092.0,0.00059868]
[1765704702624,0.23409459,90093.0,90092.0,0.00059868]
[1765704703308,0.23409459,90093.0,90092.0,0.00259868]
[1765704706342,0.23570746,90093.0,90092.0,0.00259868]
[1765704708884,0.001,90093.0,90092.0,0.04075868]
[1765704709332,0.08102713,90093.0,90090.0,0.01270069]
[1765704709529,0.23314589,90073.0,90063.0,0.01110333]
[1765704709758,0.39021063,90080.0,90063.0,0.01110333]
[1765704709759,0.01110112,90081.0,90071.0,0.02399613]
[1765704709923,0.01110112,90081.0,90061.0,0.01215]
[1765704709924,0.23314422,90073.0,90062.0,0.01110346]
[1765704710120,0.01756,90089.0,90062.0,0.01110346]
[1765704710121,0.01110161,90077.0,90071.0,0.02273]
[1765704710350,0.01110161,90077.0,90072.0,0.01543]
[1765704710673,0.23313528,90077.0,90072.0,0.01543]
[1765704710861,0.01110112,90081.0,90076.0,0.24856574]
[1765704711070,0.01110099,90082.0,90077.0,0.02779344]
[1765704711225,0.01110099,90082.0,90078.0,0.02273]
[1765704711425,0.01110099,90082.0,90079.0,0.01110136]
[1765704711665,0.01110087,90083.0,90081.0,0.02758]
[1765704712090,0.01110087,90083.0,90081.0,0.05031]
[1765704712248,0.004,90082.0,90081.0,0.03488]
[1765704712425,0.01110087,90083.0,90081.0,0.01215]
[1765704712632,0.01110087,90083.0,90082.0,0.01543]
[1765704713054,0.01110087,90083.0,90082.0,0.03816]
[1765704713776,0.01210087,90083.0,90082.0,0.03816]
[1765704713976,0.01210087,90083.0,90082.0,0.04016]
[1765704714185,0.01110087,90083.0,90082.0,0.04016]
[1765704714425,0.001,90083.0,90082.0,0.04016]
[1765704714872,0.001,90083.0,90082.0,0.04141935]
[1765704715072,0.001,90083.0,90082.0,0.04016]
[1765704715278,0.001,90083.0,90082.0,0.04045941]
[1765704718314,0.001,90083.0,90082.0,0.26247934]
[1765704719844,0.001,90083.0,90082.0,0.26286626]
[1765704724675,0.01109865,90101.0,90096.0,0.01109927]
[1765704724912,0.01109865,90101.0,90097.0,0.01109914]
[1765704725047,0.01109865,90101.0,90097.0,0.03567914]
[1765704725496,0.01109865,90101.0,90098.0,0.02458]
[1765704726372,0.39021063,90120.0,90098.0,0.02458]
[1765704726373,0.23306082,90106.0,90100.0,0.01527]
[1765704726578,0.2219659,90104.0,90101.0,0.01527]
[1765704728227,0.01109853,90102.0,90099.0,0.01233]
[1765704728374,0.23307435,90100.0,90096.0,0.01109927]
[1765704728603,0.22198297,90097.0,90094.0,0.01233]
[1765704728820,0.22198788,90096.0,90094.0,0.01233]
[1765704729024,0.22198788,90096.0,90094.0,0.03691]
[1765704729439,0.22198788,90096.0,90094.0,0.01233]
[1765704729654,0.22198788,90096.0,90091.0,0.01756]
[1765704729655,0.22199529,90092.0,90091.0,0.01756]
[1765704730553,0.01109951,90094.0,90091.0,0.01756]
[1765704731245,0.008,90092.0,90091.0,0.01756]
[1765704731909,0.013,90092.0,90091.0,0.01756]
[1765704732311,0.008,90092.0,90091.0,0.01756]
[1765704732835,0.01109951,90094.0,90091.0,0.01856]
[1765704733044,0.01109951,90094.0,90091.0,0.01956]
[1765704733250,0.01309951,90094.0,90091.0,0.01956]
[1765704733454,0.01109951,90094.0,90091.0,0.01856]
[1765704733576,0.001,90092.0,90091.0,0.01956]
[1765704733975,0.01109951,90094.0,90091.0,0.01856]
[1765704734175,0.01309951,90094.0,90091.0,0.01956]
[1765704734380,0.01309951,90094.0,90091.0,0.01856]
[1765704734637,0.01109951,90094.0,90091.0,0.01756]
[1765704734840,0.01109951,90094.0,90091.0,0.01856]
[1765704735932,0.001,90092.0,90091.0,0.01956]
[1765704736152,0.01109951,90094.0,90091.0,0.01856]
[1765704736372,0.01309951,90094.0,90091.0,0.01956]
[1765704736842,0.23509199,90094.0,90091.0,0.01956]
[1765704737539,0.002,90094.0,90091.0,0.03065988]
[1765704737761,0.002,90094.0,90091.0,0.28956558]
[1765704738037,0.002,90094.0,90092.0,0.22199333]
[1765704738224,0.002,90094.0,90092.0,0.24657333]
[1765704738445,0.002,90094.0,90093.0,0.02458]
[1765704739147,0.01109927,90096.0,90093.0,0.02458]
[1765704739493,0.002,90094.0,90093.0,0.02458]
[1765704739709,0.01109927,90096.0,90093.0,0.02458]
[1765704739911,0.01109927,90096.0,90095.0,0.01527]
[1765704741409,0.22198408,90097.0,90095.0,0.01527]
[1765704741613,0.22198408,90097.0,90095.0,0.03985]
[1765704741827,0.22198408,90097.0,90095.0,0.04085]
[1765704742039,0.002,90096.0,90095.0,0.04185]
[1765704742260,0.002,90096.0,90095.0,0.04085]
[1765704742462,0.22198408,90097.0,90095.0,0.03985]
[1765704742689,0.22398408,90097.0,90095.0,0.04085]
[1765704743086,0.2330813,90098.0,90095.0,0.03985]
[1765704743307,0.002,90096.0,90095.0,0.04085]
[1765704743463,0.002,90096.0,90095.0,0.01727]
[1765704743664,0.2330813,90098.0,90095.0,0.01627]
[1765704743865,0.002,90097.0,90095.0,0.002]
[1765704745006,0.2330813,90098.0,90093.0,0.01109964]
[1765704745212,0.01109914,90097.0,90093.0,0.01109964]
[1765704745456,0.002,90096.0,90095.0,0.001]
[1765704745829,0.01109914,90097.0,90093.0,0.01109964]
[1765704746033,0.01109927,90096.0,90095.0,0.001]
[1765704746351,0.01109927,90096.0,90093.0,0.01109964]
[1765704746670,0.01309927,90096.0,90095.0,0.001]
[1765704748746,0.01309927,90096.0,90095.0,0.002]
[1765704750419,0.002,90096.0,90095.0,0.002]
[1765704755661,0.22398543,90096.0,90095.0,0.002]
[1765704759163,0.002,90096.0,90095.0,0.002]
[1765704778408,0.002,90096.0,90095.0,0.04162]
[1765704779500,0.002,90096.0,90095.0,0.04287134]
[1765704781031,0.002,90096.0,90095.0,0.04162]
[1765704783123,0.002,90096.0,90095.0,0.04287134]
[1765704784014,0.00088548,90106.0,90105.0,0.22196326]
[1765704784229,0.00088548,90106.0,90105.0,0.23952326]
[1765704784634,0.00088548,90106.0,90105.0,0.01756]
[1765704785559,0.00888548,90106.0,90105.0,0.01756]
[1765704786198,0.00888548,90106.0,90105.0,0.05718]
[1765704787247,0.01388548,90106.0,90105.0,0.05718]
[1765704793523,0.01388548,90106.0,90105.0,0.27914326]
[1765704798656,0.22187708,90140.0,90133.0,0.22189206]
[1765704798863,0.00099999,90180.0,90144.0,0.01109336]
[1765704798864,0.01109274,90149.0,90144.0,0.01109336]
[1765704799096,0.01109274,90149.0,90141.0,0.01109373]
[1765704799097,0.01109176,90157.0,90152.0,0.01109237]
[1765704799305,0.01109163,90158.0,90153.0,0.01109225]
[1765704799520,0.02865163,90158.0,90153.0,0.01109225]
[1765704799748,0.01109237,90152.0,90148.0,0.02326286]
[1765704799954,0.01109225,90153.0,90150.0,0.01109262]
[1765704800380,0.01109213,90154.0,90151.0,0.0110925]
[1765704800591,0.01109188,90156.0,90153.0,0.01109225]
[1765704800807,0.01109188,90156.0,90151.0,0.0110925]
[1765704800808,0.011092,90155.0,90151.0,0.0110925]
[1765704801422,0.011092,90155.0,90153.0,0.001]
[1765704801580,0.01109213,90154.0,90153.0,0.001]
[1765704801777,0.01109213,90154.0,90151.0,0.0110925]
[1765704802202,0.01109213,90154.0,90151.0,0.0140925]
[1765704802624,0.01109213,90154.0,90153.0,0.001]
[1765704802956,0.011092,90155.0,90153.0,0.001]
[1765704803378,0.01209188,90156.0,90154.0,0.02731]
[1765704803590,0.01209188,90156.0,90155.0,0.30584]
[1765704803591,0.001,90156.0,90155.0,0.30584]
[1765704804028,0.001,90156.0,90155.0,0.33032]
[1765704804236,0.0204,90200.0,90157.0,0.01514]
[1765704804462,0.0204,90200.0,90181.0,0.22177577]
[1765704804463,0.01108794,90188.0,90181.0,0.22177577]
[1765704804661,0.01108819,90186.0,90182.0,0.01108868]
[1765704804865,0.01108844,90184.0,90180.0,0.01217]
[1765704805088,0.01108856,90183.0,90180.0,0.01217]
[1765704805302,0.01108868,90182.0,90179.0,0.01756]
[1765704805503,0.06089426,90181.0,90179.0,0.01756]
[1765704805724,0.2826712,90181.0,90179.0,0.01756]
[1765704806121,0.2826712,90181.0,90180.0,0.001]
[1765704806321,0.01108979,90173.0,90167.0,0.02326053]
[1765704806528,0.01108967,90174.0,90170.0,0.01109016]
[1765704806934,0.01108979,90173.0,90170.0,0.01109016]
[1765704807142,0.01108942,90176.0,90173.0,0.01108979]
[1765704807282,0.01108954,90175.0,90171.0,0.01109004]
[1765704807705,0.01108954,90175.0,90172.0,0.01108991]
[1765704808587,0.01208954,90175.0,90172.0,0.01108991]
[1765704808810,0.01308954,90175.0,90172.0,0.01108991]
[1765704808987,0.001,90175.0,90172.0,0.23288795]
[1765704809362,0.01208954,90175.0,90172.0,0.01108991]
[1765704809555,0.01308954,90175.0,90172.0,0.01108991]
[1765704809676,0.01308954,90175.0,90171.0,0.01109004]
[1765704810324,0.01108967,90174.0,90170.0,0.23289293]
[1765704810504,0.01108979,90173.0,90169.0,0.01109028]
[1765704811056,0.01108979,90173.0,90169.0,0.03456028]
[1765704811840,0.01108991,90172.0,90169.0,0.03456028]
[1765704812046,0.0110909,90164.0,90159.0,0.02308151]
[1765704812246,0.01109065,90166.0,90162.0,0.01109114]
[1765704812594,0.01109065,90166.0,90163.0,0.01109102]
[1765704813001,0.01109053,90167.0,90163.0,0.01109102]
[1765704814564,0.01109053,90167.0,90164.0,0.0110909]
[1765704816814,0.01109053,90167.0,90164.0,0.0140909]
[1765704817368,0.2218131,90166.0,90164.0,0.003]
[1765704817576,0.2218131,90166.0,90165.0,0.01756]
[1765704820151,0.2218131,90166.0,90165.0,0.01856]
[1765704820346,0.2218131,90166.0,90165.0,0.01956]
[1765704826693,0.2218131,90166.0,90165.0,0.002]
[1765704827126,0.22360758,90166.0,90165.0,0.002]
[1765704831696,0.00179448,90166.0,90165.0,0.002]
[1765704834133,0.00179448,90166.0,90165.0,0.22381556]
[1765704834518,0.00179448,90166.0,90165.0,0.002]
[1765704842031,0.06268874,90166.0,90165.0,0.002]
[1765704861285,0.00179448,90166.0,90165.0,0.002]
[1765704862475,0.00179448,90166.0,90165.0,0.27501556]
[1765704864848,0.34251287,90166.0,90165.0,0.002]
[1765704865050,0.34251287,90166.0,90135.0,0.01752]
[1765704865051,0.01109422,90137.0,90135.0,0.01752]
[1765704865273,0.01109483,90132.0,90125.0,0.0226457]
[1765704865572,0.01109446,90135.0,90127.0,0.01109545]
[1765704865762,0.01109483,90132.0,90128.0,0.01109533]
[1765704865972,0.01109496,90131.0,90128.0,0.03464533]
[1765704866310,0.01109459,90134.0,90130.0,0.01109508]
[1765704866535,0.01109459,90134.0,90130.0,0.2493464]
[1765704866736,0.01109446,90135.0,90131.0,0.02355]
[1765704866939,0.01109446,90135.0,90131.0,0.03464496]
[1765704867115,0.01109459,90134.0,90131.0,0.03464496]
[1765704867490,0.22190169,90130.0,90128.0,0.00011597]
[1765704867697,0.01109914,90097.0,90092.0,0.01198531]
[1765704867922,0.01109914,90097.0,90093.0,0.01109964]
[1765704868263,0.22199036,90094.0,90092.0,0.00088555]
[1765704868649,0.01109902,90098.0,90093.0,0.01635]
[1765704868850,0.2219879,90095.0,90094.0,0.01881135]
[1765704869083,0.2219879,90095.0,90094.0,0.05746]
[1765704869892,0.01109927,90096.0,90094.0,0.05746]
[1765704870249,0.01109927,90096.0,90095.0,0.04115164]
[1765704870670,0.01109927,90096.0,90095.0,0.0399]
[1765704871260,0.01209927,90096.0,90095.0,0.0429]
[1765704872225,0.01209927,90096.0,90095.0,0.0449]
[1765704875789,0.001,90096.0,90095.0,0.0449]
[1765704875992,0.001,90096.0,90095.0,0.04615134]
[1765704876197,0.001,90096.0,90095.0,0.26813924]
[1765704876449,0.001,90096.0,90095.0,0.0449]
[1765704876680,0.001,90096.0,90095.0,0.04615134]
[1765704877780,0.001,90096.0,90095.0,0.0449]
[1765704878182,0.001,90096.0,90095.0,0.04615134]
[1765704878367,0.001,90096.0,90095.0,0.0449]
[1765704879158,0.001,90096.0,90095.0,0.05709]
[1765704885034,0.001,90096.0,90095.0,0.05834134]
[1765704885338,0.001,90096.0,90095.0,1.05834134]
[1765704885511,0.001,90096.0,90095.0,1.05709]
[1765704888838,0.001,90096.0,90095.0,1.34779]
[1765704898315,0.001,90096.0,90095.0,0.34779]
[1765704898620,0.001,90096.0,90095.0,1.34779]
[1765704911510,0.001,90096.0,90095.0,1.42743875]
[1765704912393,0.001,90096.0,90095.0,1.34779]
[1765704912603,0.001,90096.0,90095.0,0.34779]
[1765704912859,0.001,90096.0,90095.0,1.34779]
[1765704916585,0.001,90096.0,90095.0,0.05709]
[1765704916798,0.001,90096.0,90095.0,0.005]
[1765704916799,0.2245983,90096.0,90095.0,0.005]
[1765704917557,0.2235983,90096.0,90095.0,0.002]
[1765704917775,0.22199282,90093.0,90092.0,0.00088555]
[1765704917987,0.22360569,90093.0,90092.0,0.00088555]
[1765704918862,0.22560569,90093.0,90092.0,0.00088555]
[1765704919072,0.22760569,90093.0,90092.0,0.00088555]
[1765704920124,0.22560569,90093.0,90092.0,0.00088555]
[1765704921403,0.22760569,90093.0,90092.0,0.00088555]
[1765704923597,0.00561287,90093.0,90092.0,0.03984555]
[1765704923800,0.004,90093.0,90092.0,0.04109874]
[1765704924396,0.002,90093.0,90092.0,0.03984555]
[1765704924592,0.01109865,90101.0,90096.0,0.01109927]
[1765704924798,0.01109865,90101.0,90100.0,0.02713]
[1765704925202,0.01109865,90101.0,90100.0,0.01191]
[1765704925411,0.01109877,90100.0,90097.0,0.05237914]
[1765704926328,0.01109877,90100.0,90097.0,0.27436204]
[1765704926525,0.01309865,90101.0,90097.0,0.27436204]
[1765704926526,0.01309865,90101.0,90098.0,0.01109902]
[1765704926954,0.004,90101.0,90099.0,0.22197804]
[1765704927161,0.002,90101.0,90099.0,0.22197804]
[1765704927379,0.001,90100.0,90098.0,0.03520902]
[1765704927678,0.002,90101.0,90098.0,0.03520902]
[1765704927894,0.01109853,90102.0,90099.0,0.0110989]
[1765704928014,0.001,90100.0,90099.0,0.0110989]
[1765704928637,0.01109853,90102.0,90099.0,0.0110989]
[1765704928884,0.002,90101.0,90099.0,0.0110989]
[1765704929537,0.01109865,90101.0,90098.0,0.01109902]
[1765704930165,0.01309865,90101.0,90098.0,0.01109902]
[1765704930368,0.01109865,90101.0,90098.0,0.01109902]
[1765704930605,0.01109865,90101.0,90098.0,0.03520902]
[1765704930809,0.01309865,90101.0,90098.0,0.03520902]
[1765704931219,0.01509865,90101.0,90098.0,0.03520902]
[1765704931834,0.22197558,90100.0,90098.0,0.02411]
[1765704932937,0.22397558,90100.0,90098.0,0.02411]
[1765704934147,0.002,90100.0,90098.0,0.02411]
[1765704936524,0.23507628,90100.0,90097.0,0.02991]
[1765704937230,0.23407628,90100.0,90097.0,0.02991]
[1765704937462,0.23307628,90100.0,90097.0,0.02991]
[1765704937749,0.23507628,90100.0,90097.0,0.02991]
[1765704937982,0.22198008,90099.0,90097.0,0.05402]
[1765704939122,0.22298008,90099.0,90097.0,0.05402]
[1765704939680,0.22398008,90099.0,90097.0,0.05402]
[1765704940466,0.22398008,90099.0,90098.0,0.03975]
[1765704941463,0.22398008,90099.0,90097.0,0.02991]
[1765704941464,0.22298008,90099.0,90097.0,0.01752]
[1765704941775,0.22398008,90099.0,90097.0,0.01752]
[1765704942089,0.22298008,90099.0,90097.0,0.01752]
[1765704942291,0.22198008,90099.0,90097.0,0.01752]
[1765704942462,0.22298008,90099.0,90097.0,0.01752]
[1765704942660,0.22198008,90099.0,90097.0,0.01752]
[1765704943215,0.22298008,90099.0,90097.0,0.01752]
[1765704944586,0.22398008,90099.0,90097.0,0.01752]
[1765704945957,0.002,90099.0,90098.0,0.03975]
[1765704946846,0.001,90099.0,90098.0,0.03975]
[1765704947263,0.002,90099.0,90098.0,0.03975]
[1765704947480,0.001,90099.0,90098.0,0.03975]
[1765704947685,0.002,90099.0,90098.0,0.03975]
[1765704959171,0.002,90099.0,90098.0,0.05215]
[1765704961839,0.01109939,90095.0,90083.0,0.09230613]
[1765704962077,0.22199282,90093.0,90088.0,0.01752]
[1765704964326,0.22199282,90093.0,90092.0,0.00188555]
[1765704965021,0.22199282,90093.0,90092.0,0.00088555]
[1765704965356,0.22299282,90093.0,90092.0,0.00088555]
[1765704966157,0.22399282,90093.0,90092.0,0.00088555]
[1765704972973,0.22559351,90093.0,90092.0,0.00088555]
[1765705007001,0.22459351,90093.0,90092.0,0.00088555]
[1765705007170,0.22359351,90093.0,90092.0,0.00088555]
[1765705007556,0.22559351,90093.0,90092.0,0.00088555]
[1765705007959,0.22759351,90093.0,90092.0,0.00088555]
[1765705011597,0.24511351,90093.0,90092.0,0.00088555]
[1765705012264,0.24111351,90093.0,90092.0,0.00088555]
[1765705012472,0.24311351,90093.0,90092.0,0.00188555]
[1765705012677,0.24511351,90093.0,90092.0,0.00188555]
[1765705051656,0.22759351,90093.0,90092.0,0.00188555]
[1765705060206,0.22759351,90093.0,90092.0,0.03982555]
[1765705060458,0.22759351,90093.0,90092.0,0.00188555]
[1765705103094,0.25749351,90093.0,90092.0,0.00188555]
[1765705107350,0.22759351,90093.0,90092.0,0.00188555]
[1765705107554,0.24511351,90093.0,90092.0,0.00188555]
[1765705133126,0.22203719,90075.0,90074.0,0.02881]